{"text_format":"1","workbook":"xlsx","n_sheets":1,"sheets":["Sheet1"],"not_rendered":{"charts":0,"images":1,"macros":1,"external_links":0,"defined_names":0,"comments":0,"pivot_tables":0},"unopened":[],"bounds":{"document_bytes":16777216,"sheet_cells":100000,"rows_first":2000,"rows_last":500,"rows_between":2000,"halvings":0,"cell_chars":16384,"cell_head_chars":4096},"cells_cut":0,"cells_raw":0,"read":"whole","date_system":"1900"}

{"sheet":"Sheet1","index":0,"n_rows":38,"n_cols":10,"rows_kept":38,"cut":false,"hidden":false,"merged":[]}
[]
[null,null,null,null,null,""]
[]
[null,null,null,"#","الرقم الوظيفي","اسم الموظف","المسمى الوظيفي","الفرع","رقم الموبايل","مشترك"]
[null,null,null,1,498,"سليمانِ هشام هشامِ رياض","مدير المبيعات","فرع 2",59458686,{"$f":"data[[#This Row],[الرقم الوظيفي]]&data[[#This Row],[اسم الموظف]]&data[[#This Row],[المسمى الوظيفي]]&data[[#This Row],[الفرع]]&data[[#This Row],[رقم الموبايل]]","v":"498سليمانِ هشام هشامِ رياضمدير المبيعاتفرع 259458686"}]
[null,null,null,2,829,"هشامِ رياض محمد كامل","مدير المبيعات","فرع 2",54458687,{"$f":"data[[#This Row],[الرقم الوظيفي]]&data[[#This Row],[اسم الموظف]]&data[[#This Row],[المسمى الوظيفي]]&data[[#This Row],[الفرع]]&data[[#This Row],[رقم الموبايل]]","v":"829هشامِ رياض محمد كاملمدير المبيعاتفرع 254458687"}]
[null,null,null,3,110,"زيادِ أحمد سعدي حامد","إداري","فرع 6",53458688,{"$f":"data[[#This Row],[الرقم الوظيفي]]&data[[#This Row],[اسم الموظف]]&data[[#This Row],[المسمى الوظيفي]]&data[[#This Row],[الفرع]]&data[[#This Row],[رقم الموبايل]]","v":"110زيادِ أحمد سعدي حامدإداريفرع 653458688"}]
[null,null,null,4,258,"محمودِ خميس تامر شابط","إداري","فرع 2",52458689,{"$f":"data[[#This Row],[الرقم الوظيفي]]&data[[#This Row],[اسم الموظف]]&data[[#This Row],[المسمى الوظيفي]]&data[[#This Row],[الفرع]]&data[[#This Row],[رقم الموبايل]]","v":"258محمودِ خميس تامر شابطإداريفرع 252458689"}]
[null,null,null,5,328,"مؤمن رياض سامي محمود","أمين خزنة","فرع 5",51458690,{"$f":"data[[#This Row],[الرقم الوظيفي]]&data[[#This Row],[اسم الموظف]]&data[[#This Row],[المسمى الوظيفي]]&data[[#This Row],[الفرع]]&data[[#This Row],[رقم الموبايل]]","v":"328مؤمن رياض سامي محمودأمين خزنةفرع 551458690"}]
[null,null,null,6,369,"أحمدِ سيد كمال راضي","محاسب","فرع 6",55458691,{"$f":"data[[#This Row],[الرقم الوظيفي]]&data[[#This Row],[اسم الموظف]]&data[[#This Row],[المسمى الوظيفي]]&data[[#This Row],[الفرع]]&data[[#This Row],[رقم الموبايل]]","v":"369أحمدِ سيد كمال راضيمحاسبفرع 655458691"}]
[null,null,null,7,375,"خميس زياد سمر السيد","إداري","فرع 3",56458692,{"$f":"data[[#This Row],[الرقم الوظيفي]]&data[[#This Row],[اسم الموظف]]&data[[#This Row],[المسمى الوظيفي]]&data[[#This Row],[الفرع]]&data[[#This Row],[رقم الموبايل]]","v":"375خميس زياد سمر السيدإداريفرع 356458692"}]
[null,null,null,8,778,"صهيبِ راضي محمد محمد","محاسب","فرع 3",57458693,{"$f":"data[[#This Row],[الرقم الوظيفي]]&data[[#This Row],[اسم الموظف]]&data[[#This Row],[المسمى الوظيفي]]&data[[#This Row],[الفرع]]&data[[#This Row],[رقم الموبايل]]","v":"778صهيبِ راضي محمد محمدمحاسبفرع 357458693"}]
[null,null,null,9,826,"إبراهيمِ سمير  سعيد السيد","مدير مشتريات","فرع 1",58458694,{"$f":"data[[#This Row],[الرقم الوظيفي]]&data[[#This Row],[اسم الموظف]]&data[[#This Row],[المسمى الوظيفي]]&data[[#This Row],[الفرع]]&data[[#This Row],[رقم الموبايل]]","v":"826إبراهيمِ سمير  سعيد السيدمدير مشترياتفرع 158458694"}]
[null,null,null,10,794,"زهيرِ سامي فراس السيد","أمين خزنة","فرع 5",59158695,{"$f":"data[[#This Row],[الرقم الوظيفي]]&data[[#This Row],[اسم الموظف]]&data[[#This Row],[المسمى الوظيفي]]&data[[#This Row],[الفرع]]&data[[#This Row],[رقم الموبايل]]","v":"794زهيرِ سامي فراس السيدأمين خزنةفرع 559158695"}]
[null,null,null,11,705,"خميسِ سعيد كمال محمود","مهندس","فرع 7",59258696,{"$f":"data[[#This Row],[الرقم الوظيفي]]&data[[#This Row],[اسم الموظف]]&data[[#This Row],[المسمى الوظيفي]]&data[[#This Row],[الفرع]]&data[[#This Row],[رقم الموبايل]]","v":"705خميسِ سعيد كمال محمودمهندسفرع 759258696"}]
[null,null,null,12,724,"رياضِ سيد غندور محمود","إداري","فرع 8",59358697,{"$f":"data[[#This Row],[الرقم الوظيفي]]&data[[#This Row],[اسم الموظف]]&data[[#This Row],[المسمى الوظيفي]]&data[[#This Row],[الفرع]]&data[[#This Row],[رقم الموبايل]]","v":"724رياضِ سيد غندور محمودإداريفرع 859358697"}]
[null,null,null,13,713,"راضيِ جمال أسامة سعيد","مدير المبيعات","فرع 2",59458698,{"$f":"data[[#This Row],[الرقم الوظيفي]]&data[[#This Row],[اسم الموظف]]&data[[#This Row],[المسمى الوظيفي]]&data[[#This Row],[الفرع]]&data[[#This Row],[رقم الموبايل]]","v":"713راضيِ جمال أسامة سعيدمدير المبيعاتفرع 259458698"}]
[null,null,null,14,830,"مأمون رشيد أسامة صهيب","محاسب","فرع 3",59558699,{"$f":"data[[#This Row],[الرقم الوظيفي]]&data[[#This Row],[اسم الموظف]]&data[[#This Row],[المسمى الوظيفي]]&data[[#This Row],[الفرع]]&data[[#This Row],[رقم الموبايل]]","v":"830مأمون رشيد أسامة صهيبمحاسبفرع 359558699"}]
[null,null,null,15,796,"رمضان محمد جلالِ إبراهيم","مدير مشتريات","فرع 1",59658700,{"$f":"data[[#This Row],[الرقم الوظيفي]]&data[[#This Row],[اسم الموظف]]&data[[#This Row],[المسمى الوظيفي]]&data[[#This Row],[الفرع]]&data[[#This Row],[رقم الموبايل]]","v":"796رمضان محمد جلالِ إبراهيممدير مشترياتفرع 159658700"}]
[null,null,null,16,857,"شعبان سعيد يزن ِ زهير","أمين خزنة","فرع 5",59758701,{"$f":"data[[#This Row],[الرقم الوظيفي]]&data[[#This Row],[اسم الموظف]]&data[[#This Row],[المسمى الوظيفي]]&data[[#This Row],[الفرع]]&data[[#This Row],[رقم الموبايل]]","v":"857شعبان سعيد يزن ِ زهيرأمين خزنةفرع 559758701"}]
[null,null,null,17,714,"زياد محمود سفعينِ حسين","آذن","فرع 6",59858702,{"$f":"data[[#This Row],[الرقم الوظيفي]]&data[[#This Row],[اسم الموظف]]&data[[#This Row],[المسمى الوظيفي]]&data[[#This Row],[الفرع]]&data[[#This Row],[رقم الموبايل]]","v":"714زياد محمود سفعينِ حسينآذنفرع 659858702"}]
[null,null,null,18,879,"كمال زهير عوض سلمان","إداري","فرع 5",49446566,{"$f":"data[[#This Row],[الرقم الوظيفي]]&data[[#This Row],[اسم الموظف]]&data[[#This Row],[المسمى الوظيفي]]&data[[#This Row],[الفرع]]&data[[#This Row],[رقم الموبايل]]","v":"879كمال زهير عوض سلمانإداريفرع 549446566"}]
[null,null,null,19,871,"سمير حسين السيد سعيد","محاسب","فرع 7",56595598,{"$f":"data[[#This Row],[الرقم الوظيفي]]&data[[#This Row],[اسم الموظف]]&data[[#This Row],[المسمى الوظيفي]]&data[[#This Row],[الفرع]]&data[[#This Row],[رقم الموبايل]]","v":"871سمير حسين السيد سعيدمحاسبفرع 756595598"}]
[null,null,null,20,555,"SAMER","محاسب",null,null,{"$f":"data[[#This Row],[الرقم الوظيفي]]&data[[#This Row],[اسم الموظف]]&data[[#This Row],[المسمى الوظيفي]]&data[[#This Row],[الفرع]]&data[[#This Row],[رقم الموبايل]]","v":"555SAMERمحاسب"}]
[null,null,null,21,null,null,null,null,null,{"$f":"data[[#This Row],[الرقم الوظيفي]]&data[[#This Row],[اسم الموظف]]&data[[#This Row],[المسمى الوظيفي]]&data[[#This Row],[الفرع]]&data[[#This Row],[رقم الموبايل]]","v":""}]
[null,null,null,22,null,null,null,null,null,{"$f":"data[[#This Row],[الرقم الوظيفي]]&data[[#This Row],[اسم الموظف]]&data[[#This Row],[المسمى الوظيفي]]&data[[#This Row],[الفرع]]&data[[#This Row],[رقم الموبايل]]","v":""}]
[null,null,null,23,null,null,null,null,null,{"$f":"data[[#This Row],[الرقم الوظيفي]]&data[[#This Row],[اسم الموظف]]&data[[#This Row],[المسمى الوظيفي]]&data[[#This Row],[الفرع]]&data[[#This Row],[رقم الموبايل]]","v":""}]
[null,null,null,24,null,null,null,null,null,{"$f":"data[[#This Row],[الرقم الوظيفي]]&data[[#This Row],[اسم الموظف]]&data[[#This Row],[المسمى الوظيفي]]&data[[#This Row],[الفرع]]&data[[#This Row],[رقم الموبايل]]","v":""}]
[null,null,null,25,null,null,null,null,null,{"$f":"data[[#This Row],[الرقم الوظيفي]]&data[[#This Row],[اسم الموظف]]&data[[#This Row],[المسمى الوظيفي]]&data[[#This Row],[الفرع]]&data[[#This Row],[رقم الموبايل]]","v":""}]
[null,null,null,26,null,null,null,null,null,{"$f":"data[[#This Row],[الرقم الوظيفي]]&data[[#This Row],[اسم الموظف]]&data[[#This Row],[المسمى الوظيفي]]&data[[#This Row],[الفرع]]&data[[#This Row],[رقم الموبايل]]","v":""}]
[null,null,null,27,null,null,null,null,null,{"$f":"data[[#This Row],[الرقم الوظيفي]]&data[[#This Row],[اسم الموظف]]&data[[#This Row],[المسمى الوظيفي]]&data[[#This Row],[الفرع]]&data[[#This Row],[رقم الموبايل]]","v":""}]
[null,null,null,28,null,null,null,null,null,{"$f":"data[[#This Row],[الرقم الوظيفي]]&data[[#This Row],[اسم الموظف]]&data[[#This Row],[المسمى الوظيفي]]&data[[#This Row],[الفرع]]&data[[#This Row],[رقم الموبايل]]","v":""}]
[null,null,null,29,null,null,null,null,null,{"$f":"data[[#This Row],[الرقم الوظيفي]]&data[[#This Row],[اسم الموظف]]&data[[#This Row],[المسمى الوظيفي]]&data[[#This Row],[الفرع]]&data[[#This Row],[رقم الموبايل]]","v":""}]
[null,null,null,30,null,null,null,null,null,{"$f":"data[[#This Row],[الرقم الوظيفي]]&data[[#This Row],[اسم الموظف]]&data[[#This Row],[المسمى الوظيفي]]&data[[#This Row],[الفرع]]&data[[#This Row],[رقم الموبايل]]","v":""}]
[null,null,null,31,null,null,null,null,null,{"$f":"data[[#This Row],[الرقم الوظيفي]]&data[[#This Row],[اسم الموظف]]&data[[#This Row],[المسمى الوظيفي]]&data[[#This Row],[الفرع]]&data[[#This Row],[رقم الموبايل]]","v":""}]
[null,null,null,32,null,null,null,null,null,{"$f":"data[[#This Row],[الرقم الوظيفي]]&data[[#This Row],[اسم الموظف]]&data[[#This Row],[المسمى الوظيفي]]&data[[#This Row],[الفرع]]&data[[#This Row],[رقم الموبايل]]","v":""}]
[null,null,null,33,null,null,null,null,null,{"$f":"data[[#This Row],[الرقم الوظيفي]]&data[[#This Row],[اسم الموظف]]&data[[#This Row],[المسمى الوظيفي]]&data[[#This Row],[الفرع]]&data[[#This Row],[رقم الموبايل]]","v":""}]
[null,null,null,34,null,null,null,null,null,{"$f":"data[[#This Row],[الرقم الوظيفي]]&data[[#This Row],[اسم الموظف]]&data[[#This Row],[المسمى الوظيفي]]&data[[#This Row],[الفرع]]&data[[#This Row],[رقم الموبايل]]","v":""}]